fUST/lending_fUST_20250626
["ID","MTS","AMOUNT","RATE_DAILY","PERIOD"]
[367824513,1750937145896,-151.0,0.00029493,30]
[367824514,1750937145921,-500.0,0.00029589,30]
[367824515,1750937145947,-2000.0,0.00029589,120]
[367824516,1750937145972,-2000.0,0.00029589,120]
[367824517,1750937145997,-200.0,0.00029603,30]
[367824518,1750937146021,-151.0,0.00029699,30]
[367824519,1750937146046,-151.0,0.00029712,30]
[367824520,1750937146071,-500.0,0.00029836,30]
[367824521,1750937146096,-1198.0,0.0002987,35]
[367824522,1750937146122,-151.0,0.00029945,30]
[367824523,1750937146149,-68126.3853197,0.0003,30]
[367824524,1750937146172,-200.0,0.0003,120]
[367824525,1750937146195,-1400.0,0.0003,120]
[367824526,1750937146219,-10000.0,0.0003,120]
[367824527,1750937146242,-446.1979492,0.0003,30]
[367824528,1750937146267,-213.72380786,0.0003,120]
[367824529,1750937146292,-12560.17507789,0.0003,120]
[367824530,1750937146316,-524.25751634,0.0003,120]
[367824531,1750937146340,-500.0,0.00030136,30]
[367824532,1750937146364,-2000.0,0.00030137,120]
[367824533,1750937146389,-2000.0,0.00030137,120]
[367824534,1750937146414,-151.0,0.00030384,30]
[367824535,1750937146439,-151.0,0.00030644,30]
[367824536,1750937146464,-500.0,0.00030684,30]
[367824537,1750937146488,-2000.0,0.00030685,120]
[367824538,1750937146512,-2000.0,0.00030685,120]
[367824539,1750937146539,-200.0,0.000309,120]
[367824540,1750937146564,-151.0,0.00030973,30]
[367824541,1750937146588,-160.0,0.00031,120]
[367824542,1750937146612,-425.22527846,0.00031,120]
[367824543,1750937146636,-160.0,0.00031,120]
[367824544,1750937146661,-160.0,0.00031,120]
[367824545,1750937146685,-836.92866116,0.00031,120]
[367824546,1750937146708,-425.22527846,0.00031,120]
[367824547,1750937146736,-160.0,0.00031,120]
[367824548,1750937146759,-160.0,0.00031,120]
[367824549,1750937146784,-230.24506774,0.00031,120]
[367824550,1750937146807,-605.77107219,0.00031232,30]
[367824551,1750937146832,-2000.0,0.00031233,120]
[367824552,1750937146856,-2000.0,0.00031233,120]
[367824553,1750937146881,-151.0,0.00031274,30]
[367824554,1750937146906,-500.0,0.00031356,30]
[367824555,1750937146930,-10055.78561992,0.000314,30]
[367824556,1750937146954,-200.27846,0.000316,120]
[367824557,1750937146978,-200.0,0.000316,120]
[367824558,1750937147001,-2000.0,0.00031781,120]
[367824559,1750937147024,-2000.0,0.00031781,120]
[367824560,1750937147048,-861.543992,0.00031963,120]
[367824561,1750937147072,-4419.87,0.00032,120]
[367824562,1750937147096,-2000.0,0.00032329,120]
[367824563,1750937147120,-2000.0,0.00032329,120]
[367824564,1750937147144,-391.59707,0.000325,120]
[367824565,1750937147170,-923.0,0.00032877,60]
[367824566,1750937147194,-2000.0,0.00032877,120]
[367824567,1750937147218,-2000.0,0.00032877,120]
[367824568,1750937147242,-1256.32,0.00032944,60]
[367824569,1750937147265,-988.83067,0.00033,120]
[367824570,1750937147289,-1000.0,0.00033,120]
[367824571,1750937147314,-1513.0,0.00033,120]
[367824572,1750937147338,-1256.32,0.00033144,85]
[367824573,1750937147361,-329.61022,0.000332,120]
[367824574,1750937147384,-1256.32,0.00033344,72]
[367824575,1750937147408,-200.0,0.000334,120]
[367824576,1750937147432,-10055.78561992,0.000334,30]
[367824577,1750937147457,-1256.32,0.00033544,69]
[367824578,1750937147480,-1256.32,0.00033744,70]
[367824579,1750937147504,-1256.32,0.00033944,46]
[367824580,1750937147528,-7036.0,0.00034,120]
[367824581,1750937147553,-2536.61256321,0.00034,60]
[367824582,1750937147577,-1256.32,0.00034144,31]
[367824583,1750937147601,-219.66094,0.000342,120]
[367824584,1750937147625,-1256.32,0.00034344,34]
[367824585,1750937147649,-988.83067,0.000345,120]
[367824586,1750937147672,-200.0,0.000345,120]
[367824587,1750937147694,-200.0,0.000345,120]
[367824588,1750937147717,-200.0,0.000345,120]
[367824589,1750937147740,-205.5453783,0.000345,120]
[367824590,1750937147763,-1256.32,0.00034544,70]
[367824591,1750937147786,-1256.32,0.00034744,31]
[367824592,1750937147809,-1256.32,0.00034944,46]
[367824593,1750937147832,-100000.0,0.0003495,60]
[367824594,1750937147855,-434.5214207,0.00035,120]
[367824595,1750937147877,-210.76803645,0.00035,30]
[367824596,1750937147901,-329.61022,0.00035,120]
[367824597,1750937147924,-200.0,0.00035,120]
[367824598,1750937147948,-10292.96149357,0.00035,30]
[367824599,1750937147971,-2000.0,0.00035,60]
[367824600,1750937147994,-500.0,0.00035,120]
[367824601,1750937148018,-500.0,0.00035,30]
[367824602,1750937148043,-1513.0,0.00035,120]
[367824603,1750937148067,-100000.0,0.00035,120]
[367824604,1750937148092,-1256.32,0.00035144,67]
[367824605,1750937148116,-200.0,0.000352,120]
[367824606,1750937148141,-1256.32,0.00035344,89]
[367824607,1750937148166,-1256.32,0.00035544,38]
[367824608,1750937148191,-1256.32,0.00035744,58]
[367824609,1750937148217,-1256.32,0.00035944,44]
[367824610,1750937148242,-337.0,0.00036,120]
[367824611,1750937148268,-988.83067,0.00036,120]
[367824612,1750937148293,-153.0,0.00036,120]
[367824613,1750937148318,-24802.0,0.00036,30]
[367824614,1750937148342,-1256.32,0.00036144,52]
[367824615,1750937148367,-1256.32,0.00036344,30]
[367824616,1750937148391,-861.543992,0.0003653,120]
[367824617,1750937148566,-1256.32,0.00036544,62]
[367824618,1750937148592,-1256.32,0.00036744,66]
[367824619,1750937148617,-329.61022,0.000368,120]
[367824620,1750937148641,-188.0,0.00036887,30]
[367824621,1750937148666,-1256.32,0.00036944,65]
[367824622,1750937148690,-200.0,0.00037,30]
[367824623,1750937148714,-224511.20641801,0.00037,120]
[367824624,1750937148739,-200.0,0.00037,120]
[367824625,1750937148765,-1513.0,0.00037,120]
[367824626,1750937148791,-1256.32,0.00037144,58]
[367824627,1750937148818,-1256.32,0.00037344,64]
[367824628,1750937148843,-988.83067,0.000375,120]
[367824629,1750937148868,-1256.32,0.00037544,56]
[367824630,1750937148893,-500.0,0.0003756,30]
[367824631,1750937148918,-500.0,0.0003756,30]
[367824632,1750937148942,-1256.32,0.00037744,58]
[367824633,1750937148966,-500.0,0.0003786,30]
[367824634,1750937148991,-4419.87,0.000379,120]
[367824635,1750937149016,-1256.32,0.00037944,71]
[367824636,1750937149041,-6000.0,0.00038,120]
[367824637,1750937149065,-186125.35515042,0.00038,120]
[367824638,1750937149090,-61403.99155771,0.00038,120]
[367824639,1750937149114,-4009.12291519,0.00038,30]
[367824640,1750937149138,-1256.32,0.00038144,83]
[367824641,1750937149164,-1256.32,0.00038344,79]
[367824642,1750937149192,-3180.41,0.00038356,120]
[367824643,1750937149217,-157.0,0.00038356,46]
[367824644,1750937149242,-500.0,0.0003846,30]
[367824645,1750937149267,-588.9343207,0.000385,120]
[367824646,1750937149293,-1256.32,0.00038544,120]
[367824647,1750937149316,-329.61022,0.000386,120]
[367824648,1750937149342,-1256.32,0.00038744,120]
[367824649,1750937149366,-500.0,0.0003876,30]
[367824650,1750937149391,-200.0,0.000388,120]
[367824651,1750937149417,-3180.41,0.00038904,120]
[367824652,1750937149443,-1256.32,0.00038944,120]
[367824653,1750937149468,-1112.43459,0.00039,120]
[367824654,1750937149493,-600.0,0.00039,120]
[367824655,1750937149518,-988.83072,0.00039,120]
[367824656,1750937149544,-1513.0,0.00039,120]
[367824657,1750937149570,-500.0,0.0003906,30]
[367824658,1750937149595,-1256.32,0.00039144,120]
[367824659,1750937149621,-1256.32,0.00039344,120]
[367824660,1750937149645,-209.83048,0.000394,120]
[367824661,1750937149670,-3180.41,0.00039452,120]
[367824662,1750937149694,-1256.32,0.00039544,120]
[367824663,1750937149718,-1256.32,0.00039744,120]
[367824664,1750937149741,-500.0,0.00039762,30]
[367824665,1750937149766,-1268.0,0.0003987,60]
[367824666,1750937149790,-1256.32,0.00039944,120]
[367824667,1750937149814,-99900.0,0.0003999,30]
[367824668,1750937149837,-803.80335879,0.0004,30]
[367824669,1750937149862,-166.23931081,0.0004,30]
[367824670,1750937149886,-200.0,0.0004,120]
[367824671,1750937149909,-50000.0,0.0004,30]
[367824672,1750937149934,-50000.0,0.0004,30]
[367824673,1750937149957,-50000.0,0.0004,30]
[367824674,1750937149981,-1000.0,0.0004,120]
[367824675,1750937150006,-6039.0,0.0004,120]
[367824676,1750937150030,-300.1125815,0.0004,120]
[367824677,1750937150054,-50000.0,0.0004,120]
[367824678,1750937150077,-9649.75524976,0.0004,60]
[367824679,1750937150101,-50000.000998,0.0004,30]
[367824680,1750937150124,-2000.0,0.0004,120]
[367824681,1750937150147,-270432.19745299,0.0004,30]
[367824682,1750937174365,-213.72380786,0.00026,30]
[367824683,1750937174390,-213.72380786,0.00026,120]
[367824684,1750937174639,-213.72380786,0.00029,120]
[367824685,1750937174677,-300626.42603798,0.0004,30]
[367824686,1750937174702,-8502.83795091,0.0004,120]
[367824687,1750937174728,-349.0,0.0004,120]
[367824688,1750937174758,-1689880.56458753,0.0004,30]
[367824689,1750937178418,-1258117.24556469,0.0004,30]
[367824690,1750937178446,-3180.41,0.0004,120]
[367824691,1750937178472,-155.0,0.0004,120]
[367824692,1750937178498,-213.72380786,0.0004,120]
[367824693,1750937178524,-1256.32,0.00040144,120]
[367824694,1750937178550,-1256.32,0.00040344,120]
[367824695,1750937178577,-329.61022,0.000404,120]
[367824696,1750937178601,-1256.32,0.00040544,120]
[367824697,1750937178625,-3180.41,0.00040547,120]
[367824698,1750937178649,-321.90503,0.000406,120]
[367824699,1750937178675,-1256.32,0.00040744,120]
[367824700,1750937178700,-1256.32,0.00040944,120]
[367824701,1750937178724,-1513.0,0.00041,120]
[367824702,1750937178749,-152.0,0.00041041,31]
[367824703,1750937178775,-152.0,0.00041041,31]
[367824704,1750937178799,-152.0,0.00041041,31]
[367824705,1750937178822,-152.0,0.00041041,31]
[367824706,1750937178847,-460.0,0.00041095,120]
[367824707,1750937178872,-3180.41,0.00041095,120]
[367824708,1750937178897,-453.03,0.00041096,120]
[367824709,1750937178921,-861.543992,0.00041096,120]
[367824710,1750937178946,-1256.32,0.00041144,120]
[367824711,1750937178970,-1256.32,0.00041344,120]
[367824712,1750937178995,-600.0,0.000414,120]
[367824713,1750937179019,-1256.32,0.00041544,120]
[367824714,1750937179042,-3180.41,0.00041643,120]
[367824715,1750937179068,-174.0,0.00041644,69]
[367824716,1750937179093,-1256.32,0.00041744,120]
[367824717,1750937179119,-1256.32,0.00041944,120]
[367824718,1750937179144,-1000.0,0.00042,120]
[367824719,1750937179168,-33120.0,0.00042,120]
[367824720,1750937179193,-1256.32,0.00042144,120]
[367824721,1750937179219,-3180.41,0.00042191,120]
[367824722,1750937179243,-1256.32,0.00042344,120]
[367824723,1750937179266,-1759.56876662,0.000424,120]
[367824724,1750937179292,-302.575,0.00042468,64]
[367824725,1750937179316,-5000.0,0.0004249,95]
[367824726,1750937179346,-1256.32,0.00042544,120]
[367824727,1750937179378,-3180.41,0.00042739,120]
[367824728,1750937179407,-1256.32,0.00042744,120]
[367824729,1750937179434,-1256.32,0.00042944,120]
[367824730,1750937179464,-111150.15471048,0.00043,120]
[367824731,1750937179494,-40756.40611002,0.00043,120]
[367824732,1750937179524,-2000.04,0.00043,30]
[367824733,1750937179553,-2000.0,0.00043,60]
[367824734,1750937179584,-2000.0,0.00043,90]
[367824735,1750937179613,-2000.0,0.00043,90]
[367824736,1750937179641,-1368.66,0.00043,90]
[367824737,1750937179669,-2000.0,0.00043,60]
[367824738,1750937179698,-1513.0,0.00043,120]
[367824739,1750937179726,-1256.32,0.00043144,120]
[367824740,1750937179752,-209233.43801368,0.00043189,120]
[367824741,1750937179779,-3180.41,0.00043287,120]
[367824742,1750937179807,-1256.32,0.00043344,120]
[367824743,1750937179837,-600.0,0.000434,120]
[367824744,1750937179865,-5000.0,0.0004349,95]
[367824745,1750937179893,-1256.32,0.00043544,120]
[367824746,1750937179924,-1256.32,0.00043744,120]
[367824747,1750937179955,-1000.0,0.000438,90]
[367824748,1750937179980,-3180.41,0.00043835,120]
[367824749,1750937180006,-1256.32,0.00043944,120]
[367824750,1750937180033,-1000.0,0.00044,120]
[367824751,1750937180061,-2718.34488948,0.00044,120]
[367824752,1750937180088,-4224.38452109,0.00044,120]
[367824753,1750937180114,-10000.0,0.00044,60]
[367824754,1750937180140,-5000.0,0.00044,60]
[367824755,1750937180167,-1256.32,0.00044144,120]
[367824756,1750937180191,-1256.32,0.00044344,120]
[367824757,1750937180217,-3180.41,0.00044383,120]
[367824758,1750937180242,-10055.78461992,0.00044384,120]
[367824759,1750937180268,-10055.78461992,0.00044384,120]
[367824760,1750937180293,-102895.36965731,0.000444,120]
[367824761,1750937180320,-5000.0,0.0004449,95]
[367824762,1750937180346,-16266.174483,0.000445,120]
[367824763,1750937180372,-1942.51735412,0.000445,120]
[367824764,1750937180398,-1256.83866642,0.00044544,120]
[367824765,1750937180425,-3180.41,0.00044931,120]
[367824766,1750937180451,-164.0,0.00044932,100]
[367824767,1750937180476,-1000.0,0.00044999,120]
[367824768,1750937180502,-1750.05578026,0.00045,120]
[367824769,1750937180530,-81616.70419313,0.00045,35]
[367824770,1750937189457,-1457.69,0.00038356,120]
[367824771,1750937189482,-1457.69,0.00038904,120]
[367824772,1750937189508,-1457.69,0.00039452,120]
[367824773,1750937189534,-1457.69,0.0004,120]
[367824774,1750937189559,-1457.69,0.00040547,120]
[367824775,1750937189583,-1457.69,0.00041095,120]
[367824776,1750937189608,-18383.29580687,0.00045,35]
[367824777,1750937189633,-5025.1859449,0.00045,120]
[367824778,1750937189657,-50000.0,0.00045,120]
[367824779,1750937189681,-10000.0,0.00045,120]
[367824780,1750937189704,-25050.0,0.00045,30]
[367824781,1750937189730,-1137.8212954,0.00045,120]
[367824782,1750937189756,-1513.0,0.00045,120]
[367824783,1750937189781,-600.0,0.000454,120]
[367824784,1750937189805,-135328.77949875,0.00045444,120]
[367824785,1750937189829,-5000.0,0.0004549,95]
[367824786,1750937189854,-1000.0,0.00046,120]
[367824787,1750937189878,-6440.52564559,0.000464,120]
[367824788,1750937189903,-10000.0,0.0004649,95]
[367824789,1750937189926,-718.30110207,0.000465,90]
[367824790,1750937189950,-20000.0,0.000467,40]
[367824791,1750937189973,-153.0,0.00047,120]
[367824792,1750937189997,-1513.0,0.00047,120]
[367824793,1750937190021,-10000.0,0.0004749,95]
[367824794,1750937190045,-1000.0,0.00048,120]
[367824795,1750937190069,-1451.93567687,0.00048,120]
[367824796,1750937190094,-2873.8094526,0.00048,120]
[367824797,1750937190118,-2000000.0,0.00048,90]
[367824798,1750937190142,-684065.20557695,0.0004844,30]
[367824799,1750937193132,-1457.69,0.00041643,120]
[367824800,1750937193160,-1457.69,0.00042191,120]
[367824801,1750937193188,-1457.69,0.00042739,120]
[367824802,1750937193214,-1457.69,0.00043287,120]
[367824803,1750937193240,-1457.69,0.00043835,120]
[367824804,1750937193264,-1457.69,0.00044383,120]
[367824805,1750937193289,-1457.69,0.00044931,120]
[367824806,1750937193315,-1457.69,0.00045479,120]
[367824807,1750937193340,-1457.69,0.00046027,120]
[367824808,1750937193366,-1457.69,0.00046575,120]
[367824809,1750937193391,-1457.69,0.00047123,120]
[367824810,1750937193417,-1457.69,0.00047671,120]
[367824811,1750937193442,-1457.69,0.00048219,120]
[367824812,1750937193467,-115934.79442305,0.0004844,30]
[367824813,1750937193492,-1457.69,0.00048767,120]
[367824814,1750937193518,-372.1317449,0.00049,120]
[367824815,1750937193543,-1513.0,0.00049,120]
[367824816,1750937193569,-167.0,0.00049315,120]
[367824817,1750937193597,-5000.0,0.000499,95]
[367824818,1750937193624,-2498.25597239,0.0005,120]
[367824819,1750937193649,-10078.0,0.0005,120]
[367824820,1750937193679,-542.69520929,0.0005,120]
[367824821,1750937193705,-539.406924,0.0005,30]
[367824822,1750937193731,-1000.0,0.0005,120]
[367824823,1750937193755,-9028.86966081,0.0005,30]
[367824824,1750937193785,-52700.0579204,0.0005,120]
[367824825,1750937193978,-500.0,0.000505,120]
[367824826,1750937194004,-255.38325,0.00050525,120]
[367824827,1750937194029,-251.91475,0.00050525,120]
[367824828,1750937194054,-1000.0,0.00050999,120]
[367824829,1750937194078,-1513.0,0.00051,120]
[367824830,1750937194102,-3000.0,0.00051,85]
[367824831,1750937194127,-3000.0,0.0005101,85]
[367824832,1750937194151,-3000.0,0.0005102,85]
[367824833,1750937194176,-3000.0,0.0005103,85]
[367824834,1750937194200,-3000.0,0.0005104,85]
[367824835,1750937194225,-3000.0,0.0005105,85]
[367824836,1750937194250,-3000.0,0.0005106,85]
[367824837,1750937194275,-3000.0,0.0005107,85]
[367824838,1750937194300,-3105.841613,0.0005108,85]
[367824839,1750937194324,-1000.0,0.00052,120]
[367824840,1750937194352,-188.17,0.00052409,30]
[367824841,1750937194377,-15158.55953341,0.000526,30]
[367824842,1750937194402,-406.0,0.00052783,120]
[367824843,1750937194426,-5000.0,0.000529,95]
[367824844,1750937194451,-1117.55328101,0.00054,120]
[367824845,1750937194477,-1000.0,0.00054,120]
[367824846,1750937194506,-680.12670862,0.00054,120]
[367824847,1750937194530,-501.75,0.00054,60]
[367824848,1750937194555,-800000.0,0.0005444,30]
[367824849,1750937194581,-632.0,0.00054495,120]
[367824850,1750937194605,-632.0,0.00054495,120]
[367824851,1750937194630,-632.0,0.00054495,120]
[367824852,1750937194654,-632.0,0.00054495,120]
[367824853,1750937194678,-632.0,0.00054495,120]
[367824854,1750937194702,-632.0,0.00054495,120]
[367824855,1750937194726,-632.0,0.00054495,120]
[367824856,1750937194750,-632.0,0.00054495,120]
[367824857,1750937194777,-632.0,0.00054495,120]
[367824858,1750937194801,-632.0,0.00054495,120]
[367824859,1750937194827,-632.0,0.00054495,120]
[367824860,1750937194852,-632.0,0.00054495,120]
[367824861,1750937194877,-632.0,0.00054495,120]
[367824862,1750937194901,-632.0,0.00054495,120]
[367824863,1750937194924,-632.0,0.00054495,120]
[367824864,1750937194949,-632.0,0.00054495,120]
[367824865,1750937194973,-632.0,0.00054495,120]
[367824866,1750937194997,-632.0,0.00054495,120]
[367824867,1750937195021,-632.0,0.00054495,120]
[367824868,1750937195044,-632.0,0.00054495,120]
[367824869,1750937195066,-632.0,0.00054495,120]
[367824870,1750937195090,-632.0,0.00054495,120]
[367824871,1750937195113,-632.0,0.00054495,120]
[367824872,1750937195137,-655.47240034,0.00054495,120]
[367824873,1750937195160,-151.0,0.00054495,120]
[367824874,1750937195183,-151.0,0.00054495,120]
[367824875,1750937195206,-151.0,0.00054495,120]
[367824876,1750937195230,-217.8546737,0.00054495,120]
[367824877,1750937195252,-500.0,0.00054495,120]
[367824878,1750937195275,-500.0,0.00054495,120]
[367824879,1750937195297,-500.0,0.00054495,120]
[367824880,1750937195321,-500.0,0.00054495,120]
[367824881,1750937195344,-500.0,0.00054495,120]
[367824882,1750937195368,-500.0,0.00054495,120]
[367824883,1750937195392,-500.0,0.00054495,120]
[367824884,1750937195416,-500.0,0.00054495,120]
[367824885,1750937195439,-500.0,0.00054495,120]
[367824886,1750937195463,-500.0,0.00054495,120]
[367824887,1750937195488,-500.0,0.00054495,120]
[367824888,1750937195512,-500.0,0.00054495,120]
[367824889,1750937195536,-500.0,0.00054495,120]
[367824890,1750937195561,-500.0,0.00054495,120]
[367824891,1750937195585,-512.10000001,0.00054495,120]
[367824892,1750937195610,-500.0,0.00054495,120]
[367824893,1750937195634,-500.0,0.00054495,120]
[367824894,1750937195658,-500.0,0.00054495,120]
[367824895,1750937195682,-500.0,0.00054495,120]
[367824896,1750937195706,-486.02021361,0.00054495,120]
[367824897,1750937195729,-500.0,0.000545,120]
[367824898,1750937195752,-1588.33610007,0.000545,120]
[367824899,1750937195777,-10000.0,0.0005479,120]
[367824900,1750937195803,-154.17177485,0.00054794,120]
[367824901,1750937195857,1457.69,0.00049315,120]
[367824902,1750937195899,1457.69,0.00049863,120]
[367824903,1750937195944,1457.69,0.0005041,120]
[367824904,1750937196114,1457.75223912,0.00050958,120]
[367824905,1750937196404,6704.16539432,0.00025007,30]
[367824906,1750937196455,2200.0,0.00049315,30]
[367824907,1750937196484,1039.20219234,0.000545,120]
[367824908,1750937201262,1646156.13665945,0.00054795,120]
[367824911,1750937206323,160.0,0.0004,30]
[367824912,1750937206728,160.0,0.0005,120]
[367824914,1750937228658,-1145330.31415513,0.00025018,20]
[367824915,1750937228682,-222.96153981,0.00025018,15]
[367824916,1750937228705,-237.90759876,0.00025018,10]
[367824917,1750937228728,-192.40970141,0.00025018,12]
[367824918,1750937228751,-1083.84035354,0.00025018,10]
[367824919,1750937228774,-200.0,0.00025018,10]
[367824920,1750937228797,-498.0,0.00025018,7]
[367824921,1750937228820,-153.02813605,0.00025018,7]
[367824922,1750937228845,-608.90391407,0.00025018,15]
[367824923,1750937228869,-851472.63460123,0.00025018,20]
[367824924,1750937233071,-2000000.0,0.00025018,20]
[367824925,1750937235993,-2000000.0,0.00025018,20]
[367824926,1750937239018,-2000000.0,0.00025018,20]
[367824927,1750937241877,-2000000.0,0.00025018,20]
[367824928,1750937249155,-2000000.0,0.00025018,20]
[367824929,1750937259236,-500.0,0.00020547,14]
[367824930,1750937259266,-187.70087121,0.00020843,5]
[367824931,1750937259290,-500.0,0.00020958,15]
[367824932,1750937259327,-2242.70531674,0.00021279,5]
[367824933,1750937259351,-500.0,0.00021369,16]
[367824934,1750937259377,-151.0,0.00021429,5]
[367824935,1750937259611,-2242.70531674,0.00021521,5]
[367824936,1750937259640,-151.0,0.00021715,5]
[367824937,1750937259671,-2242.70531674,0.00021762,5]
[367824938,1750937259696,-500.0,0.0002178,17]
[367824939,1750937259733,-151.0,0.00021918,7]
[367824940,1750937259758,-151.0,0.00021918,7]
[367824941,1750937259781,-151.0,0.00021918,7]
[367824942,1750937259805,-151.0,0.00021918,7]
[367824943,1750937259832,-151.0,0.00021918,7]
[367824944,1750937259855,-151.0,0.00021918,7]
[367824945,1750937259880,-151.0,0.00021918,7]
[367824946,1750937259906,-151.0,0.00021918,7]
[367824947,1750937259932,-151.0,0.00021973,7]
[367824948,1750937259956,-820.672992,0.00021973,7]
[367824949,1750937259980,-820.672992,0.00021973,7]
[367824950,1750937260004,-151.0,0.00021973,7]
[367824951,1750937260027,-1112534.7147558,0.0002199,7]
[367824952,1750937260050,-151.0,0.0002199,7]
[367824953,1750937260073,-151.0,0.0002199,7]
[367824954,1750937260096,-151.435267,0.0002199,7]
[367824955,1750937260119,-151.0,0.0002199,7]
[367824956,1750937260142,-152.059841,0.0002199,7]
[367824957,1750937260165,-206.08478,0.0002199,7]
[367824958,1750937260188,-151.0,0.0002199,7]
[367824959,1750937260211,-151.0,0.0002199,7]
[367824960,1750937260234,-196.43247,0.0002199,7]
[367824961,1750937260257,-151.0,0.0002199,7]
[367824962,1750937260281,-151.0,0.0002199,7]
[367824963,1750937260305,-151.0,0.0002199,7]
[367824964,1750937260330,-151.0,0.0002199,7]
[367824965,1750937260355,-151.0,0.0002199,7]
[367824966,1750937260379,-284.36487,0.0002199,7]
[367824967,1750937260404,-284.36487,0.0002199,7]
[367824968,1750937260428,-151.0,0.0002199,7]
[367824969,1750937260452,-151.0,0.0002199,7]
[367824970,1750937260475,-151.0,0.0002199,7]
[367824971,1750937260500,-151.0,0.0002199,7]
[367824972,1750937260524,-284.00379,0.0002199,7]
[367824973,1750937260548,-151.0,0.0002199,7]
[367824974,1750937260572,-151.000001,0.0002199,7]
[367824975,1750937260596,-151.0,0.0002199,7]
[367824976,1750937260619,-151.0,0.0002199,7]
[367824977,1750937260644,-151.0,0.0002199,7]
[367824978,1750937260668,-151.0,0.0002199,7]
[367824979,1750937260692,-151.0,0.0002199,7]
[367824980,1750937260716,-197.076694,0.0002199,7]
[367824981,1750937260741,-197.076694,0.0002199,7]
[367824982,1750937260765,-151.0,0.0002199,7]
[367824983,1750937260789,-151.0,0.0002199,7]
[367824984,1750937260817,-151.0,0.0002199,7]
[367824985,1750937260841,-820.672992,0.0002199,7]
[367824986,1750937260865,-820.672992,0.0002199,7]
[367824987,1750937260893,-151.0,0.0002199,7]
[367824988,1750937260917,-151.0,0.0002199,7]
[367824989,1750937260940,-151.0,0.0002199,7]
[367824990,1750937260966,-151.0,0.0002199,7]
[367824991,1750937260990,-151.0,0.0002199,7]
[367824992,1750937261015,-151.0,0.0002199,7]
[367824993,1750937261039,-151.0,0.0002199,7]
[367824994,1750937261062,-151.0,0.0002199,7]
[367824995,1750937261085,-226.920011,0.0002199,7]
[367824996,1750937261107,-226.920011,0.0002199,7]
[367824997,1750937261130,-453.45,0.00022,5]
[367824998,1750937261154,-1504.22902243,0.00022,7]
[367824999,1750937261176,-160.0,0.00022,7]
[367825000,1750937261199,-15671.92,0.00022,7]
[367825001,1750937261223,-209545.94,0.00022,7]
[367825002,1750937261246,-151.0,0.00022,7]
[367825003,1750937261269,-151.0,0.00022,7]
[367825004,1750937261292,-151.0,0.00022,7]
[367825005,1750937261315,-151.0,0.00022,7]
[367825006,1750937261337,-153.677598,0.00022,7]
[367825007,1750937261361,-151.0,0.00022,7]
[367825008,1750937261384,-151.0,0.00022,7]
[367825009,1750937261408,-151.0,0.00022,7]
[367825010,1750937261432,-151.0,0.00022,7]
[367825011,1750937261455,-188.194491,0.00022,7]
[367825012,1750937261479,-151.0,0.00022,7]
[367825013,1750937261502,-151.0,0.00022,7]
[367825014,1750937261526,-151.0,0.00022,7]
[367825015,1750937261551,-151.0,0.00022,7]